{"text_format":"3","workbook":"xlsx","n_sheets":2,"sheets":["البدء","الميزانية الشخصية الشهرية"],"read":"whole","date_system":"1900"}

{"sheet":"البدء","index":0,"n_rows":7,"n_cols":2,"rows_kept":7}
[null,"حول هذا القالب"]
[null,"استخدم ورقة العمل \"الميزانية الشهرية الشخصية\" هذه لتعقب الدخل الشهري المتوقع والفعلي والتكلفة الفعلية والمتوقعة."]
[null,"أدخل المصاريف المتكبدة على مختلف الفئات في الجداول الخاصة بها."]
[null,"يتم حساب رصيد الميزانية المتوقعة والميزانية الفعلية والفرق تلقائياً."]
[null,"ملاحظة: "]
[null,"تم توفير إرشادات إضافية في العمود A في ورقة عمل \"الميزانية الشهرية الشخصية\". تم إخفاء هذا النص عن قصد. لإزالة النص، حدد العمود A، ثم حدد \"حذف\". لإظهار النص، حدد العمود A، ثم قم بتغيير لون الخط."]
[null,"لمعرفة المزيد حول الجداول في ورقة العمل، اضغط على SHIFT ثم F10 داخل جدول، وحدد خيار \"جدول\"، ثم حدد \"النص البديل\"."]

{"sheet":"الميزانية الشخصية الشهرية","index":1,"n_rows":64,"n_cols":10,"rows_kept":64,"merged":[[3,1,5,1],[3,2,3,3],[3,6,4,8],[3,9,4,9],[4,2,4,3],[5,2,5,3],[5,6,6,8],[5,9,6,9],[7,1,9,1],[7,2,7,3],[7,6,8,8],[7,9,8,9],[8,2,8,3],[9,2,9,3],[58,6,59,8],[58,9,59,9],[60,6,61,8],[60,9,61,9],[62,6,63,8],[62,9,63,9]]}
["قم بإنشاء \"ميزانية شخصية شهرية\" في ورقة العمل هذه. توجد تعليمات مفيدة حول كيفية استخدام ورقة العمل هذه في الخلايا الموجودة في هذا العمود. السهم لأسفل لبدء الاستخدام."]
["يوجد عنوان ورقة العمل هذه في الخلية الموجودة على اليسار. توجد الإرشادات التالية في الخلية A4.","الميزانية الشخصية الشهرية"]
[]
["توجد تسمية الدخل الشهري المتوقع في الخلية الموجودة على اليسار. أدخل الدخل 1 في الخلية E4 والدخل الإضافي في E5 لحساب إجمالي الدخل الشهري في E6. توجد الإرشادات التالية في الخلية A6.","الدخل الشهري المتوقع","الدخل 1",null,{"v":4300,"d":"ر.س.‏ 4,300.00"},null,"الميزانية المتوقعة \n(الدخل ناقص المصروفات المتوقع)",null,null,{"$f":"E6-J59","v":{"v":3405,"d":"ر.س.‏ 3,405.00"}}]
[null,null,"الدخل الإضافي",null,{"v":300,"d":"ر.س.‏ 300.00"}]
["يتم حساب الميزانية المتوقعة تلقائياً في الخلية J4 والميزانية الفعلية في J6 والفرق في J8. توجد الإرشادات التالية في الخلية A8.",null,"إجمالي الدخل الشهري",null,{"$f":"SUM(E4:E5)","v":{"v":4600,"d":"ر.س.‏ 4,600.00"}},null,"الميزانية الفعلية \n(الدخل ناقص المصروفات الفعلي)",null,null,{"$f":"E10-J61","v":{"v":3064,"d":"ر.س.‏ 3,064.00"}}]
[]
["توجد تسمية الدخل الشهري الفعلي في الخلية الموجودة على اليسار. أدخل الدخل 1 في الخلية E8 والدخل الإضافي في E9 لحساب إجمالي الدخل الشهري في E10. توجد الإرشادات التالية في الخلية A12.","الدخل الشهري الفعلي","الدخل 1",null,{"v":4000,"d":"ر.س.‏ 4,000.00"},null,"الفرق \n(الدخل الفعلي ناقص المتوقع)",null,null,{"$f":"J6-J4","v":{"v":-341,"d":"ر.س.‏ 341.00"}}]
[null,null,"الدخل الإضافي",null,{"v":300,"d":"ر.س.‏ 300.00"}]
[null,null,"إجمالي الدخل الشهري",null,{"$f":"SUM(E8:E9)","v":{"v":4300,"d":"ر.س.‏ 4,300.00"}}]
[]
["أدخل التفاصيل في جدول \"السكن\" بدءاً من الخلية الموجودة على اليسار وفي جدول \"الترفيه\" بدءاً من الخلية G12. توجد الإرشادات التالية في الخلية A25.","السكن","التكلفة المتوقعة","التكلفة الفعلية","الفرق",null,"الترفيه","التكلفة المتوقعة","التكلفة الفعلية","الفرق"]
[null,"قسط الرهن أو الإيجار",{"v":1000,"d":"ر.س.‏ 1,000.00"},{"v":1000,"d":"ر.س.‏ 1,000.00"},{"$f":"السكن[[#This Row],[التكلفة المتوقعة]]-السكن[[#This Row],[التكلفة الفعلية]]","v":{"v":0,"d":"ر.س.‏ 0.00"}},null,"ليلة بالخارج",null,null,{"$f":"الترفيه[[#This Row],[التكلفة المتوقعة]]-الترفيه[[#This Row],[التكلفة الفعلية]]","v":{"v":0,"d":"ر.س.‏ 0.00"}}]
[null,"رقم الهاتف",{"v":54,"d":"ر.س.‏ 54.00"},{"v":100,"d":"ر.س.‏ 100.00"},{"$f":"السكن[[#This Row],[التكلفة المتوقعة]]-السكن[[#This Row],[التكلفة الفعلية]]","v":{"v":-46,"d":"-ر.س.‏ 46.00"}},null,"الأنظمة الأساسية للموسيقى",null,null,{"$f":"الترفيه[[#This Row],[التكلفة المتوقعة]]-الترفيه[[#This Row],[التكلفة الفعلية]]","v":{"v":0,"d":"ر.س.‏ 0.00"}}]
[null,"الكهرباء",{"v":44,"d":"ر.س.‏ 44.00"},{"v":56,"d":"ر.س.‏ 56.00"},{"$f":"السكن[[#This Row],[التكلفة المتوقعة]]-السكن[[#This Row],[التكلفة الفعلية]]","v":{"v":-12,"d":"-ر.س.‏ 12.00"}},null,"الأفلام",null,null,{"$f":"الترفيه[[#This Row],[التكلفة المتوقعة]]-الترفيه[[#This Row],[التكلفة الفعلية]]","v":{"v":0,"d":"ر.س.‏ 0.00"}}]
[null,"وقود",{"v":22,"d":"ر.س.‏ 22.00"},{"v":28,"d":"ر.س.‏ 28.00"},{"$f":"السكن[[#This Row],[التكلفة المتوقعة]]-السكن[[#This Row],[التكلفة الفعلية]]","v":{"v":-6,"d":"-ر.س.‏ 6.00"}},null,"الحفلات الموسيقية",null,null,{"$f":"الترفيه[[#This Row],[التكلفة المتوقعة]]-الترفيه[[#This Row],[التكلفة الفعلية]]","v":{"v":0,"d":"ر.س.‏ 0.00"}}]
[null,"المياه والصرف",{"v":8,"d":"ر.س.‏ 8.00"},{"v":8,"d":"ر.س.‏ 8.00"},{"$f":"السكن[[#This Row],[التكلفة المتوقعة]]-السكن[[#This Row],[التكلفة الفعلية]]","v":{"v":0,"d":"ر.س.‏ 0.00"}},null,"الأحداث الرياضية",null,null,{"$f":"الترفيه[[#This Row],[التكلفة المتوقعة]]-الترفيه[[#This Row],[التكلفة الفعلية]]","v":{"v":0,"d":"ر.س.‏ 0.00"}}]
[null,"القنوات الفضائية",{"v":34,"d":"ر.س.‏ 34.00"},{"v":34,"d":"ر.س.‏ 34.00"},{"$f":"السكن[[#This Row],[التكلفة المتوقعة]]-السكن[[#This Row],[التكلفة الفعلية]]","v":{"v":0,"d":"ر.س.‏ 0.00"}},null,"المسرح المباشر",null,null,{"$f":"الترفيه[[#This Row],[التكلفة المتوقعة]]-الترفيه[[#This Row],[التكلفة الفعلية]]","v":{"v":0,"d":"ر.س.‏ 0.00"}}]
[null,"إزالة المهملات",{"v":10,"d":"ر.س.‏ 10.00"},{"v":10,"d":"ر.س.‏ 10.00"},{"$f":"السكن[[#This Row],[التكلفة المتوقعة]]-السكن[[#This Row],[التكلفة الفعلية]]","v":{"v":0,"d":"ر.س.‏ 0.00"}},null,"غير ذلك",null,null,{"$f":"الترفيه[[#This Row],[التكلفة المتوقعة]]-الترفيه[[#This Row],[التكلفة الفعلية]]","v":{"v":0,"d":"ر.س.‏ 0.00"}}]
[null,"الصيانة أو الإصلاحات",{"v":23,"d":"ر.س.‏ 23.00"},{"v":0,"d":"ر.س.‏ 0.00"},{"$f":"السكن[[#This Row],[التكلفة المتوقعة]]-السكن[[#This Row],[التكلفة الفعلية]]","v":{"v":23,"d":"ر.س.‏ 23.00"}},null,"غير ذلك",null,null,{"$f":"الترفيه[[#This Row],[التكلفة المتوقعة]]-الترفيه[[#This Row],[التكلفة الفعلية]]","v":{"v":0,"d":"ر.س.‏ 0.00"}}]
[null,"المستلزمات",{"v":0,"d":"ر.س.‏ 0.00"},{"v":0,"d":"ر.س.‏ 0.00"},{"$f":"السكن[[#This Row],[التكلفة المتوقعة]]-السكن[[#This Row],[التكلفة الفعلية]]","v":{"v":0,"d":"ر.س.‏ 0.00"}},null,"غير ذلك",null,null,{"$f":"الترفيه[[#This Row],[التكلفة المتوقعة]]-الترفيه[[#This Row],[التكلفة الفعلية]]","v":{"v":0,"d":"ر.س.‏ 0.00"}}]
[null,"غير ذلك",{"v":0,"d":"ر.س.‏ 0.00"},{"v":0,"d":"ر.س.‏ 0.00"},{"$f":"السكن[[#This Row],[التكلفة المتوقعة]]-السكن[[#This Row],[التكلفة الفعلية]]","v":{"v":0,"d":"ر.س.‏ 0.00"}},null,"الإجمالي الفرعي",null,null,{"$f":"SUBTOTAL(109,الترفيه[الفرق])","v":{"v":0,"d":"ر.س.‏ 0.00"}}]
[null,"الإجمالي الفرعي",null,null,{"$f":"SUBTOTAL(109,السكن[الفرق])","v":{"v":-41,"d":"-ر.س.‏ 41.00"}}]
[{"$nulls":6},"القروض","التكلفة المتوقعة","التكلفة الفعلية","الفرق"]
["أدخل التفاصيل في جدول \"وسيلة النقل\" بدءاً من الخلية الموجودة على اليسار وفي جدول \"القروض\" بدءاً من الخلية G24. توجد الإرشادات التالية في الخلية A35.","وسيلة النقل","التكلفة المتوقعة","التكلفة الفعلية","الفرق",null,"شخصية",null,null,{"$f":"القروض[[#This Row],[التكلفة المتوقعة]]-القروض[[#This Row],[التكلفة الفعلية]]","v":{"v":0,"d":"ر.س.‏ 0.00"}}]
[null,"مدفوعات السيارة",null,null,{"$f":"وسائل_النقل[[#This Row],[التكلفة المتوقعة]]-وسائل_النقل[[#This Row],[التكلفة الفعلية]]","v":{"v":0,"d":"ر.س.‏ 0.00"}},null,"طالب",null,null,{"$f":"القروض[[#This Row],[التكلفة المتوقعة]]-القروض[[#This Row],[التكلفة الفعلية]]","v":{"v":0,"d":"ر.س.‏ 0.00"}}]
[null,"أجرة الحافلة/التاكسي",null,null,{"$f":"وسائل_النقل[[#This Row],[التكلفة المتوقعة]]-وسائل_النقل[[#This Row],[التكلفة الفعلية]]","v":{"v":0,"d":"ر.س.‏ 0.00"}},null,"بطاقة الائتمان",null,null,{"$f":"القروض[[#This Row],[التكلفة المتوقعة]]-القروض[[#This Row],[التكلفة الفعلية]]","v":{"v":0,"d":"ر.س.‏ 0.00"}}]
[null,"التأمين",null,null,{"$f":"وسائل_النقل[[#This Row],[التكلفة المتوقعة]]-وسائل_النقل[[#This Row],[التكلفة الفعلية]]","v":{"v":0,"d":"ر.س.‏ 0.00"}},null,"بطاقة الائتمان",null,null,{"$f":"القروض[[#This Row],[التكلفة المتوقعة]]-القروض[[#This Row],[التكلفة الفعلية]]","v":{"v":0,"d":"ر.س.‏ 0.00"}}]
[null,"الترخيص",null,null,{"$f":"وسائل_النقل[[#This Row],[التكلفة المتوقعة]]-وسائل_النقل[[#This Row],[التكلفة الفعلية]]","v":{"v":0,"d":"ر.س.‏ 0.00"}},null,"بطاقة الائتمان",null,null,{"$f":"القروض[[#This Row],[التكلفة المتوقعة]]-القروض[[#This Row],[التكلفة الفعلية]]","v":{"v":0,"d":"ر.س.‏ 0.00"}}]
[null,"الوقود",null,null,{"$f":"وسائل_النقل[[#This Row],[التكلفة المتوقعة]]-وسائل_النقل[[#This Row],[التكلفة الفعلية]]","v":{"v":0,"d":"ر.س.‏ 0.00"}},null,"غير ذلك",null,null,{"$f":"القروض[[#This Row],[التكلفة المتوقعة]]-القروض[[#This Row],[التكلفة الفعلية]]","v":{"v":0,"d":"ر.س.‏ 0.00"}}]
[null,"الصيانة",null,null,{"$f":"وسائل_النقل[[#This Row],[التكلفة المتوقعة]]-وسائل_النقل[[#This Row],[التكلفة الفعلية]]","v":{"v":0,"d":"ر.س.‏ 0.00"}},null,"الإجمالي الفرعي",null,null,{"$f":"SUBTOTAL(109,القروض[الفرق])","v":{"v":0,"d":"ر.س.‏ 0.00"}}]
[null,"غير ذلك",null,null,{"$f":"وسائل_النقل[[#This Row],[التكلفة المتوقعة]]-وسائل_النقل[[#This Row],[التكلفة الفعلية]]","v":{"v":0,"d":"ر.س.‏ 0.00"}}]
[null,"الإجمالي الفرعي",null,null,{"$f":"SUBTOTAL(109,وسائل_النقل[الفرق])","v":{"v":0,"d":"ر.س.‏ 0.00"}},null,"الضرائب","التكلفة المتوقعة","التكلفة الفعلية","الفرق"]
[{"$nulls":6},"فيدرالي",null,null,{"$f":"الضرائب[[#This Row],[التكلفة المتوقعة]]-الضرائب[[#This Row],[التكلفة الفعلية]]","v":{"v":0,"d":"ر.س.‏ 0.00"}}]
["أدخل التفاصيل في جدول \"التأمين\" بدءاً من الخلية الموجودة على اليسار وفي جدول \"الضرائب\" بدءاً من الخلية G33. توجد الإرشادات التالية في الخلية A42.","التأمين","التكلفة المتوقعة","التكلفة الفعلية","الفرق",null,"الولاية",null,null,{"$f":"الضرائب[[#This Row],[التكلفة المتوقعة]]-الضرائب[[#This Row],[التكلفة الفعلية]]","v":{"v":0,"d":"ر.س.‏ 0.00"}}]
[null,"المنزل",null,null,{"$f":"التأمين[[#This Row],[التكلفة المتوقعة]]-التأمين[[#This Row],[التكلفة الفعلية]]","v":{"v":0,"d":"ر.س.‏ 0.00"}},null,"المحلية",null,null,{"$f":"الضرائب[[#This Row],[التكلفة المتوقعة]]-الضرائب[[#This Row],[التكلفة الفعلية]]","v":{"v":0,"d":"ر.س.‏ 0.00"}}]
[null,"صحي",null,null,{"$f":"التأمين[[#This Row],[التكلفة المتوقعة]]-التأمين[[#This Row],[التكلفة الفعلية]]","v":{"v":0,"d":"ر.س.‏ 0.00"}},null,"غير ذلك",null,null,{"$f":"الضرائب[[#This Row],[التكلفة المتوقعة]]-الضرائب[[#This Row],[التكلفة الفعلية]]","v":{"v":0,"d":"ر.س.‏ 0.00"}}]
[null,"حياة",null,null,{"$f":"التأمين[[#This Row],[التكلفة المتوقعة]]-التأمين[[#This Row],[التكلفة الفعلية]]","v":{"v":0,"d":"ر.س.‏ 0.00"}},null,"الإجمالي الفرعي",null,null,{"$f":"SUBTOTAL(109,الضرائب[الفرق])","v":{"v":0,"d":"ر.س.‏ 0.00"}}]
[null,"غير ذلك",null,null,{"$f":"التأمين[[#This Row],[التكلفة المتوقعة]]-التأمين[[#This Row],[التكلفة الفعلية]]","v":{"v":0,"d":"ر.س.‏ 0.00"}}]
[null,"الإجمالي الفرعي",null,null,{"$f":"SUBTOTAL(109,التأمين[الفرق])","v":{"v":0,"d":"ر.س.‏ 0.00"}},null,"المدخرات أو الاستثمارات","التكلفة المتوقعة","التكلفة الفعلية","الفرق"]
[{"$nulls":6},"حساب التقاعد",null,null,{"$f":"المدخرات[[#This Row],[التكلفة المتوقعة]]-المدخرات[[#This Row],[التكلفة الفعلية]]","v":{"v":0,"d":"ر.س.‏ 0.00"}}]
["أدخل التفاصيل في جدول \"الطعام\" بدءاً من الخلية الموجودة على اليسار وفي جدول \"المدخرات\" بدءاً من الخلية G40. توجد الإرشادات التالية في الخلية A48.","الطعام","التكلفة المتوقعة","التكلفة الفعلية","الفرق",null,"حساب الاستثمار",null,null,{"$f":"المدخرات[[#This Row],[التكلفة المتوقعة]]-المدخرات[[#This Row],[التكلفة الفعلية]]","v":{"v":0,"d":"ر.س.‏ 0.00"}}]
[null,"البقالة",null,null,{"$f":"الطعام[[#This Row],[التكلفة المتوقعة]]-الطعام[[#This Row],[التكلفة الفعلية]]","v":{"v":0,"d":"ر.س.‏ 0.00"}},null,"غير ذلك",null,null,{"$f":"المدخرات[[#This Row],[التكلفة المتوقعة]]-المدخرات[[#This Row],[التكلفة الفعلية]]","v":{"v":0,"d":"ر.س.‏ 0.00"}}]
[null,"الطعام خارج المنزل",null,null,{"$f":"الطعام[[#This Row],[التكلفة المتوقعة]]-الطعام[[#This Row],[التكلفة الفعلية]]","v":{"v":0,"d":"ر.س.‏ 0.00"}},null,"الإجمالي الفرعي",null,null,{"$f":"SUBTOTAL(109,المدخرات[الفرق])","v":{"v":0,"d":"ر.س.‏ 0.00"}}]
[null,"غير ذلك",null,null,{"$f":"الطعام[[#This Row],[التكلفة المتوقعة]]-الطعام[[#This Row],[التكلفة الفعلية]]","v":{"v":0,"d":"ر.س.‏ 0.00"}}]
[null,"الإجمالي الفرعي",null,null,{"$f":"SUBTOTAL(109,الطعام[الفرق])","v":{"v":0,"d":"ر.س.‏ 0.00"}},null,"الهدايا والتبرعات","التكلفة المتوقعة","التكلفة الفعلية","الفرق"]
[{"$nulls":6},"عمل خيري 1",null,null,{"$f":"الهدايا[[#This Row],[التكلفة المتوقعة]]-الهدايا[[#This Row],[التكلفة الفعلية]]","v":{"v":0,"d":"ر.س.‏ 0.00"}}]
["أدخل التفاصيل في جدول \"الحيوانات الأليفة\" بدءاً من الخلية الموجودة على اليسار وفي جدول \"الهدايا\" بدءاً من الخلية G46. توجد الإرشادات التالية في الخلية A56.","الحيوانات الأليفة","التكلفة المتوقعة","التكلفة الفعلية","الفرق",null,"عمل خيري 2",null,null,{"$f":"الهدايا[[#This Row],[التكلفة المتوقعة]]-الهدايا[[#This Row],[التكلفة الفعلية]]","v":{"v":0,"d":"ر.س.‏ 0.00"}}]
[null,"الطعام",null,null,{"$f":"الحيوانات_الأليفة[[#This Row],[التكلفة المتوقعة]]-الحيوانات_الأليفة[[#This Row],[التكلفة الفعلية]]","v":{"v":0,"d":"ر.س.‏ 0.00"}},null,"عمل خيري 3",null,null,{"$f":"الهدايا[[#This Row],[التكلفة المتوقعة]]-الهدايا[[#This Row],[التكلفة الفعلية]]","v":{"v":0,"d":"ر.س.‏ 0.00"}}]
[null,"المتطلبات الطبية",null,null,{"$f":"الحيوانات_الأليفة[[#This Row],[التكلفة المتوقعة]]-الحيوانات_الأليفة[[#This Row],[التكلفة الفعلية]]","v":{"v":0,"d":"ر.س.‏ 0.00"}},null,"الإجمالي الفرعي",null,null,{"$f":"SUBTOTAL(109,الهدايا[الفرق])","v":{"v":0,"d":"ر.س.‏ 0.00"}}]
[null,"التدليل",null,null,{"$f":"الحيوانات_الأليفة[[#This Row],[التكلفة المتوقعة]]-الحيوانات_الأليفة[[#This Row],[التكلفة الفعلية]]","v":{"v":0,"d":"ر.س.‏ 0.00"}}]
[null,"الدمى",null,null,{"$f":"الحيوانات_الأليفة[[#This Row],[التكلفة المتوقعة]]-الحيوانات_الأليفة[[#This Row],[التكلفة الفعلية]]","v":{"v":0,"d":"ر.س.‏ 0.00"}},null,"المتطلبات القانونية","التكلفة المتوقعة","التكلفة الفعلية","الفرق"]
[null,"غير ذلك",null,null,{"$f":"الحيوانات_الأليفة[[#This Row],[التكلفة المتوقعة]]-الحيوانات_الأليفة[[#This Row],[التكلفة الفعلية]]","v":{"v":0,"d":"ر.س.‏ 0.00"}},null,"محامي",null,null,{"$f":"المتطلبات_القانونية[[#This Row],[التكلفة المتوقعة]]-المتطلبات_القانونية[[#This Row],[التكلفة الفعلية]]","v":{"v":0,"d":"ر.س.‏ 0.00"}}]
[null,"الإجمالي الفرعي",null,null,{"$f":"SUBTOTAL(109,الحيوانات_الأليفة[الفرق])","v":{"v":0,"d":"ر.س.‏ 0.00"}},null,"نفقة الزوجة",null,null,{"$f":"المتطلبات_القانونية[[#This Row],[التكلفة المتوقعة]]-المتطلبات_القانونية[[#This Row],[التكلفة الفعلية]]","v":{"v":0,"d":"ر.س.‏ 0.00"}}]
[{"$nulls":6},"مدفوعات الرهن أو الدين",null,null,{"$f":"المتطلبات_القانونية[[#This Row],[التكلفة المتوقعة]]-المتطلبات_القانونية[[#This Row],[التكلفة الفعلية]]","v":{"v":0,"d":"ر.س.‏ 0.00"}}]
["أدخل التفاصيل في جدول \"الرعاية الشخصية\" بدءاً من الخلية الموجودة على اليسار وفي جدول \"المتطلبات القانونية\" بدءاً من الخلية G52. توجد الإرشادات التالية في الخلية A59.","الرعاية الشخصية","التكلفة المتوقعة","التكلفة الفعلية","الفرق",null,"غير ذلك",null,null,{"$f":"المتطلبات_القانونية[[#This Row],[التكلفة المتوقعة]]-المتطلبات_القانونية[[#This Row],[التكلفة الفعلية]]","v":{"v":0,"d":"ر.س.‏ 0.00"}}]
[null,"المتطلبات الطبية",null,null,{"$f":"الرعاية_الشخصية[[#This Row],[التكلفة المتوقعة]]-الرعاية_الشخصية[[#This Row],[التكلفة الفعلية]]","v":{"v":0,"d":"ر.س.‏ 0.00"}},null,"الإجمالي الفرعي",null,null,{"$f":"SUBTOTAL(109,المتطلبات_القانونية[الفرق])","v":{"v":0,"d":"ر.س.‏ 0.00"}}]
[null,"الشعر/الأظافر",null,null,{"$f":"الرعاية_الشخصية[[#This Row],[التكلفة المتوقعة]]-الرعاية_الشخصية[[#This Row],[التكلفة الفعلية]]","v":{"v":0,"d":"ر.س.‏ 0.00"}}]
["يتم حساب إجمالي التكلفة المتوقعة تلقائياً في الخلية J59 وإجمالي التكلفة الفعلية في J61 وإجمالي الفرق في J63.","الملابس",null,null,{"$f":"الرعاية_الشخصية[[#This Row],[التكلفة المتوقعة]]-الرعاية_الشخصية[[#This Row],[التكلفة الفعلية]]","v":{"v":0,"d":"ر.س.‏ 0.00"}},null,"إجمالي التكلفة المتوقعة",null,null,{"$f":"SUBTOTAL(109,السكن[التكلفة المتوقعة],وسائل_النقل[التكلفة المتوقعة],التأمين[التكلفة المتوقعة],الطعام[التكلفة المتوقعة],الحيوانات_الأليفة[التكلفة المتوقعة],الرعاية_الشخصية[التكلفة المتوقعة],الترفيه[التكلفة المتوقعة],القروض[التكلفة المتوقعة],الضرائب[التكلفة المتوقعة],المدخرات[التكلفة المتوقعة],الهدايا[التكلفة المتوقعة],المتطلبات_القانونية[التكلفة المتوقعة])","v":{"v":1195,"d":"ر.س.‏ 1,195.00"}}]
[null,"التنظيف الجاف",null,null,{"$f":"الرعاية_الشخصية[[#This Row],[التكلفة المتوقعة]]-الرعاية_الشخصية[[#This Row],[التكلفة الفعلية]]","v":{"v":0,"d":"ر.س.‏ 0.00"}}]
[null,"النادي الصحي",null,null,{"$f":"الرعاية_الشخصية[[#This Row],[التكلفة المتوقعة]]-الرعاية_الشخصية[[#This Row],[التكلفة الفعلية]]","v":{"v":0,"d":"ر.س.‏ 0.00"}},null,"إجمالي التكلفة الفعلية",null,null,{"$f":"SUBTOTAL(109,السكن[التكلفة الفعلية],وسائل_النقل[التكلفة الفعلية],التأمين[التكلفة الفعلية],الطعام[التكلفة الفعلية],الحيوانات_الأليفة[التكلفة الفعلية],الرعاية_الشخصية[التكلفة الفعلية],الترفيه[التكلفة الفعلية],القروض[التكلفة الفعلية],الضرائب[التكلفة الفعلية],المدخرات[التكلفة الفعلية],الهدايا[التكلفة الفعلية],المتطلبات_القانونية[التكلفة الفعلية])","v":{"v":1236,"d":"ر.س.‏ 1,236.00"}}]
[null,"مستحقات المؤسسة أو رسومها",null,null,{"$f":"الرعاية_الشخصية[[#This Row],[التكلفة المتوقعة]]-الرعاية_الشخصية[[#This Row],[التكلفة الفعلية]]","v":{"v":0,"d":"ر.س.‏ 0.00"}}]
[null,"غير ذلك",null,null,{"$f":"الرعاية_الشخصية[[#This Row],[التكلفة المتوقعة]]-الرعاية_الشخصية[[#This Row],[التكلفة الفعلية]]","v":{"v":0,"d":"ر.س.‏ 0.00"}},null,"إجمالي الفرق",null,null,{"$f":"J59-J61","v":{"v":-41,"d":"ر.س.‏ 41.00"}}]
[null,"الإجمالي الفرعي",null,null,{"$f":"SUBTOTAL(109,الرعاية_الشخصية[الفرق])","v":{"v":0,"d":"ر.س.‏ 0.00"}}]